fUST/lending_fUST_20241230
["ID","MTS","AMOUNT","RATE_DAILY","PERIOD"]
[347143394,1735521040678,-500.0,0.00017632,2]
[347143396,1735521040687,-500.0,0.00017632,2]
[347143398,1735521040696,-500.0,0.00017632,2]
[347143400,1735521040705,-500.0,0.00017632,2]
[347143402,1735521040714,-500.0,0.00017632,2]
[347143404,1735521040723,-500.0,0.00017632,2]
[347143406,1735521040732,-500.0,0.00017632,2]
[347143408,1735521040741,-500.0,0.00017696,2]
[347143410,1735521040751,-500.0,0.00017727,2]
[347143412,1735521040760,-206.59571906,0.00017763,2]
[347143414,1735521040769,-500.0,0.00017793,2]
[347143416,1735521040778,-500.0,0.00017793,2]
[347143418,1735521040787,-500.0,0.00017793,2]
[347143420,1735521040797,-429.0696,0.00017793,2]
[347143422,1735521040806,-500.0,0.00017793,2]
[347143424,1735521040815,-1751.96,0.00017793,2]
[347143426,1735521040824,-2374.6,0.00017797,2]
[347143428,1735521040834,-500.0,0.00017797,2]
[347143430,1735521040842,-1114.09,0.00017797,2]
[347143432,1735521040852,-173.47059155,0.00017806,2]
[347143435,1735521040861,-500.0,0.00017906,2]
[347143436,1735521040871,-500.0,0.00017906,2]
[347143438,1735521040880,-500.0,0.00017906,2]
[347143440,1735521040889,-862.53,0.00017906,2]
[347143442,1735521040901,-500.0,0.00017906,2]
[347143445,1735521040915,-6566.03,0.00017906,2]
[347143447,1735521040926,-500.0,0.00017906,2]
[347143449,1735521040935,-500.0,0.00017906,2]
[347143451,1735521040944,-500.0,0.00017906,2]
[347143452,1735521040955,-500.0,0.00017906,2]
[347143455,1735521040964,-500.0,0.00017906,2]
[347143457,1735521040973,-500.0,0.00017906,2]
[347143459,1735521040985,-243.75782681,0.00017906,2]
[347143461,1735521040995,-5164.75756255,0.00018,2]
[347143463,1735521041004,-500.0,0.00018067,2]
[347143465,1735521041013,-500.0,0.00018067,2]
[347143466,1735521041023,-500.0,0.00018067,2]
[347143468,1735521041033,-420.0,0.00018067,2]
[347143471,1735521041042,-1751.96,0.00018067,2]
[347143473,1735521041051,-2374.6,0.00018071,2]
[347143475,1735521041061,-500.0,0.00018071,2]
[347143477,1735521041070,-1114.09,0.00018071,2]
[347143479,1735521041079,-1000.0,0.00018139,2]
[347143480,1735521041088,-210.75,0.0001818,2]
[347143483,1735521041098,-500.0,0.0001818,2]
[347143484,1735521041107,-500.0,0.0001818,2]
[347143486,1735521041117,-862.53,0.0001818,2]
[347143488,1735521041127,-500.0,0.0001818,2]
[347143491,1735521041136,-6566.03,0.0001818,2]
[347143492,1735521041146,-500.0,0.0001818,2]
[347143494,1735521041155,-500.0,0.0001818,2]
[347143496,1735521041164,-500.0,0.0001818,2]
[347143498,1735521041175,-500.0,0.0001818,2]
[347143500,1735521041184,-500.0,0.0001818,2]
[347143502,1735521041193,-1000.0,0.00018275,2]
[347143504,1735521041201,-500.0,0.00018341,2]
[347143506,1735521041211,-500.0,0.00018341,2]
[347143508,1735521041220,-500.0,0.00018341,2]
[347143510,1735521041230,-1751.96,0.00018341,2]
[347143512,1735521041239,-2374.6,0.00018345,2]
[347143514,1735521041248,-500.0,0.00018345,2]
[347143516,1735521041258,-1114.09,0.00018345,2]
[347143518,1735521041267,-206.59571906,0.00018427,2]
[347143520,1735521041276,-500.0,0.00018454,2]
[347143522,1735521041285,-862.53,0.00018454,2]
[347143524,1735521041294,-500.0,0.00018454,2]
[347143527,1735521041303,-6566.03,0.00018454,2]
[347143529,1735521041313,-331.41,0.00018454,2]
[347143531,1735521041322,-500.0,0.00018454,2]
[347143533,1735521041332,-500.0,0.00018454,2]
[347143535,1735521041341,-500.0,0.00018454,2]
[347143537,1735521041350,-500.0,0.00018454,2]
[347143539,1735521041359,-177.19306644,0.00018615,2]
[347143541,1735521041369,-500.0,0.00018615,2]
[347143542,1735521041378,-559.54520479,0.00018615,2]
[347143545,1735521041387,-500.0,0.00018615,2]
[347143546,1735521041397,-305.91873109,0.00018615,2]
[347143548,1735521041405,-500.0,0.00018615,2]
[347143551,1735521041415,-500.0,0.00018615,2]
[347143552,1735521041425,-609.26199984,0.00018615,2]
[347143554,1735521041434,-500.0,0.00018615,2]
[347143557,1735521041443,-500.0,0.00018615,2]
[347143559,1735521041453,-500.0,0.00018615,2]
[347143560,1735521041462,-154.75,0.00018615,2]
[347143562,1735521041472,-500.0,0.00018615,2]
[347143564,1735521041481,-130.32503705,0.00018615,2]
[347143733,1735521043088,-371.89412842,0.00018615,2]
[347143735,1735521043098,-500.0,0.00018615,2]
[347143737,1735521043107,-500.0,0.00018615,2]
[347143739,1735521043116,-373.00497361,0.00018615,2]
[347143741,1735521043126,-500.0,0.00018615,2]
[347143743,1735521043135,-500.0,0.00018615,2]
[347143745,1735521043144,-500.0,0.00018615,2]
[347143747,1735521043153,-500.0,0.00018615,2]
[347143749,1735521043162,-500.0,0.00018615,2]
[347143751,1735521043172,-500.0,0.00018615,2]
[347143755,1735521043181,-500.0,0.00018615,2]
[347143758,1735521043191,-616.7924543,0.00018615,2]
[347143761,1735521043200,-500.0,0.00018615,2]
[347143763,1735521043210,-1751.96,0.00018615,2]
[347143765,1735521043219,-2374.6,0.00018619,2]
[347143767,1735521043227,-383.69,0.00018619,2]
[347143769,1735521043237,-1114.09,0.00018619,2]
[347143771,1735521043245,-500.0,0.00018728,2]
[347143773,1735521043254,-862.53,0.00018728,2]
[347143775,1735521043263,-500.0,0.00018728,2]
[347143777,1735521043272,-6566.03,0.00018728,2]
[347143779,1735521043281,-500.0,0.00018728,2]
[347143781,1735521043290,-500.0,0.00018728,2]
[347143783,1735521043299,-500.0,0.00018728,2]
[347143785,1735521043308,-500.0,0.00018728,2]
[347143787,1735521043318,-500.0,0.00018889,2]
[347143789,1735521043327,-585.34,0.00018889,2]
[347143791,1735521043336,-511.88864727,0.00018889,2]
[347143793,1735521043345,-500.0,0.00018889,2]
[347143795,1735521043355,-500.0,0.00018889,2]
[347143797,1735521043364,-500.0,0.00018889,2]
[347143799,1735521043373,-500.0,0.00018889,2]
[347143801,1735521043382,-500.0,0.00018889,2]
[347143803,1735521043391,-417.3165123,0.00018889,2]
[347143805,1735521043400,-484.01019423,0.00018889,2]
[347143807,1735521043409,-500.0,0.00018889,2]
[347143809,1735521043418,-1751.96,0.00018889,2]
[347143811,1735521043427,-2374.6,0.00018893,2]
[347143813,1735521043436,-1114.09,0.00018893,2]
[347143815,1735521043446,-500.0,0.00019002,2]
[347143817,1735521043455,-862.53,0.00019002,2]
[347143820,1735521043465,-500.0,0.00019002,2]
[347143822,1735521043474,-6566.03,0.00019002,2]
[347143824,1735521043484,-500.0,0.00019002,2]
[347143826,1735521043494,-500.0,0.00019002,2]
[347143828,1735521043503,-500.0,0.00019002,2]
[347143830,1735521043513,-955.07457902,0.00019082,2]
[347143832,1735521043522,-206.59571906,0.00019091,2]
[347143834,1735521043531,-1500.0,0.00019141,2]
[347143836,1735521043540,-257.09,0.00019163,2]
[347143838,1735521043549,-500.0,0.00019163,2]
[347143840,1735521043559,-600.32,0.00019163,2]
[347143842,1735521043568,-500.0,0.00019163,2]
[347143844,1735521043577,-500.0,0.00019163,2]
[347143846,1735521043586,-1751.96,0.00019163,2]
[347143848,1735521043595,-1534.76634763,0.00019167,2]
[347144009,1735521046267,-839.83365237,0.00019167,2]
[347144010,1735521046276,-1114.09,0.00019167,2]
[347144011,1735521046286,-500.0,0.00019276,2]
[347144012,1735521046295,-862.53,0.00019276,2]
[347144013,1735521046305,-500.0,0.00019276,2]
[347144014,1735521046315,-6566.03,0.00019276,2]
[347144015,1735521046324,-500.0,0.00019276,2]
[347144016,1735521046333,-500.0,0.00019276,2]
[347144017,1735521046342,-500.0,0.00019276,2]
[347144018,1735521046351,-500.0,0.00019437,2]
[347144019,1735521046360,-1751.96,0.00019437,2]
[347144020,1735521046369,-2374.6,0.00019441,2]
[347144021,1735521046379,-1114.09,0.00019441,2]
[347144022,1735521046388,-500.0,0.0001955,2]
[347144023,1735521046397,-862.53,0.0001955,2]
[347144024,1735521046406,-500.0,0.0001955,2]
[347144025,1735521046415,-4939.43651399,0.0001955,2]
[347144039,1735522117726,889.85882593,0.00025,120]
[347144040,1735522119971,1660.999999,0.0002,120]
[347144085,1735522232355,-400.0,0.00013973,2]
[347144087,1735522232365,-206.8069445,0.00015655,2]
[347144089,1735522232375,-6692.7138287,0.00015707,2]
[347144108,1735522232551,-1055.37,0.00015707,2]
[347144317,1735522240417,-500.0,0.00015706,2]
[347144318,1735522240427,-472.08065576,0.00015706,2]
[347144319,1735522240437,-274.10010823,0.00015706,2]
[347144320,1735522240446,-500.0,0.00015706,2]
[347144321,1735522240456,-500.0,0.00015706,2]
[347144322,1735522240466,-427.77291738,0.00015706,2]
[347144323,1735522240475,-562.51510712,0.00015706,2]
[347144324,1735522240485,-5762.34485267,0.00015707,2]
[347144366,1735522244153,-11389.57131863,0.00015707,2]
[347144368,1735522244163,-293.50509,0.00015755,2]
[347144369,1735522244172,-250.0,0.00016053,2]
[347144370,1735522244182,-300.0,0.00016535,2]
[347144371,1735522244191,-500.0,0.00016536,2]
[347144372,1735522244200,-430.05279042,0.00016536,2]
[347144373,1735522244209,-1021.98,0.00016536,2]
[347144374,1735522244218,-500.0,0.00016536,2]
[347144375,1735522244227,-500.0,0.00016536,2]
[347144376,1735522244236,-576.72226685,0.00016536,2]
[347144377,1735522244245,-500.0,0.00016536,2]
[347144378,1735522244254,-500.0,0.00016536,2]
[347144379,1735522244263,-500.0,0.00016536,2]
[347144380,1735522244273,-500.0,0.00016536,2]
[347144381,1735522244282,-500.0,0.00016536,2]
[347144382,1735522244291,-500.0,0.00016536,2]
[347144383,1735522244300,-500.0,0.00016536,2]
[347144384,1735522244313,-500.0,0.00016536,2]
[347144385,1735522244322,-500.0,0.00016536,2]
[347144386,1735522244331,-500.0,0.00016536,2]
[347144387,1735522244340,-160.13931941,0.00016536,2]
[347144388,1735522244352,-579.75,0.00016536,2]
[347144389,1735522244362,-181.63,0.00016536,2]
[347144390,1735522244371,-500.0,0.00016536,2]
[347144391,1735522244380,-500.0,0.00016808,2]
[347144392,1735522244390,-500.0,0.00016808,2]
[347144393,1735522244400,-500.0,0.00016808,2]
[347144394,1735522244409,-500.0,0.00016808,2]
[347144395,1735522244418,-500.0,0.00016808,2]
[347144396,1735522244427,-500.0,0.00016808,2]
[347144397,1735522244437,-522.73626053,0.00016808,2]
[347144398,1735522244446,-600.68008032,0.00016808,2]
[347144399,1735522244455,-528.52330147,0.00016808,2]
[347144400,1735522244464,-500.0,0.00016808,2]
[347144401,1735522244473,-500.0,0.00016809,2]
[347144402,1735522244483,-500.0,0.00016809,2]
[347144403,1735522244492,-1021.98,0.0001681,2]
[347144404,1735522244502,-500.0,0.0001681,2]
[347144405,1735522244511,-500.0,0.0001681,2]
[347144406,1735522244522,-500.0,0.0001681,2]
[347144407,1735522244531,-514.96282925,0.0001681,2]
[347144408,1735522244540,-500.0,0.0001681,2]
[347144409,1735522244550,-500.0,0.0001681,2]
[347144410,1735522244559,-154.94678931,0.00016871,2]
[347144411,1735522244569,-500.0,0.0001697,2]
[347144412,1735522244578,-500.0,0.0001697,2]
[347144413,1735522244587,-3380.13,0.0001697,2]
[347144414,1735522244597,-331.61562354,0.0001697,2]
[347144415,1735522244606,-503.40381298,0.0001697,2]
[347144416,1735522244616,-2321.78,0.00016971,2]
[347144417,1735522244625,-503.35075589,0.00016971,2]
[347144418,1735522244634,-500.0,0.00016971,2]
[347144419,1735522244644,-500.0,0.00017082,2]
[347144420,1735522244653,-500.0,0.00017082,2]
[347144421,1735522244662,-500.0,0.00017082,2]
[347144422,1735522244671,-500.0,0.00017083,2]
[347144423,1735522244680,-1021.98,0.00017084,2]
[347144424,1735522244689,-500.0,0.00017084,2]
[347144425,1735522244698,-500.0,0.00017084,2]
[347144426,1735522244707,-500.0,0.00017084,2]
[347144427,1735522244716,-500.0,0.00017084,2]
[347144428,1735522244725,-500.0,0.00017084,2]
[347144429,1735522244734,-500.0,0.00017244,2]
[347144430,1735522244743,-500.0,0.00017244,2]
[347144431,1735522244752,-500.0,0.00017244,2]
[347144432,1735522244761,-3380.13,0.00017244,2]
[347144433,1735522244770,-2321.78,0.00017245,2]
[347144434,1735522244779,-500.0,0.00017356,2]
[347144435,1735522244787,-541.07,0.00017356,2]
[347144436,1735522244797,-517.22321591,0.00017356,2]
[347144437,1735522244806,-500.0,0.00017357,2]
[347144438,1735522244815,-1021.98,0.00017358,2]
[347144439,1735522244824,-500.0,0.00017358,2]
[347144440,1735522244833,-508.65675999,0.00017358,2]
[347144441,1735522244843,-166.333,0.00017366,2]
[347144442,1735522244853,-500.0,0.00017518,2]
[347144443,1735522244862,-500.0,0.00017518,2]
[347144444,1735522244871,-3380.13,0.00017518,2]
[347144445,1735522244880,-2321.78,0.00017519,2]
[347144446,1735522244889,-500.0,0.0001763,2]
[347144447,1735522244898,-346.52490285,0.00017631,2]
[347144448,1735522244907,-1021.98,0.00017632,2]
[347144449,1735522244916,-500.0,0.00017632,2]
[347144450,1735522244926,-500.0,0.00017792,2]
[347144451,1735522244935,-500.0,0.00017792,2]
[347144452,1735522244944,-3380.13,0.00017792,2]
[347144453,1735522244953,-2321.78,0.00017793,2]
[347144454,1735522244962,-500.0,0.00017904,2]
[347144455,1735522244971,-1021.98,0.00017906,2]
[347144456,1735522244980,-500.0,0.00017999,2]
[347144457,1735522244989,-5164.75756255,0.00018,2]
[347144458,1735522244998,-500.0,0.00018066,2]
[347144459,1735522245008,-500.0,0.00018066,2]
[347144460,1735522245102,-3380.13,0.00018066,2]
[347144461,1735522245111,-2321.78,0.00018067,2]
[347144462,1735522245120,-420.0,0.00018068,2]
[347144463,1735522245130,-500.0,0.00018178,2]
[347144464,1735522245139,-1021.98,0.0001818,2]
[347144465,1735522245149,-154.94678929,0.00018274,2]
[347144466,1735522245158,-500.0,0.0001834,2]
[347144467,1735522245167,-500.0,0.0001834,2]
[347144468,1735522245177,-3380.13,0.0001834,2]
[347144469,1735522245186,-2321.78,0.00018341,2]
[347144470,1735522245195,-500.0,0.00018452,2]
[347144471,1735522245204,-1021.98,0.00018454,2]
[347144472,1735522245213,-7887.63387895,0.00018567,2]
[347144473,1735522245223,-500.0,0.00018614,2]
[347144474,1735522245232,-500.0,0.00018614,2]
[347144475,1735522245241,-500.0,0.00018614,2]
[347144476,1735522245250,-3380.13,0.00018614,2]
[347144477,1735522245260,-2321.78,0.00018615,2]
[347144478,1735522245269,-500.0,0.00018726,2]
[347144479,1735522245278,-1021.98,0.00018728,2]
[347144480,1735522245287,-500.0,0.00018888,2]
[347144481,1735522245296,-500.00000001,0.00018888,2]
[347144482,1735522245305,-3380.13,0.00018888,2]
[347144483,1735522245316,-2321.78,0.00018889,2]
[347144484,1735522245326,-500.0,0.00019,2]
[347144485,1735522245335,-1021.98,0.00019002,2]
[347144486,1735522245347,-500.0,0.00019162,2]
[347144487,1735522245356,-500.0,0.00019162,2]
[347144488,1735522245366,-3380.13,0.00019162,2]
[347144489,1735522245375,-2321.78,0.00019163,2]
[347144490,1735522245384,-9039.29839634,0.0001925,2]
[347144491,1735522245394,-500.0,0.00019274,2]
[347144492,1735522245404,-1021.98,0.00019276,2]
[347144493,1735522245413,-544.001028,0.00019436,2]
[347144494,1735522245422,-3380.13,0.00019436,2]
[347144495,1735522245431,-2321.78,0.00019437,2]
[347144496,1735522245440,-500.0,0.00019548,2]
[347144497,1735522245450,-1021.98,0.0001955,2]
[347144498,1735522245459,-154.94678929,0.00019676,2]
[347144499,1735522245468,-500.0,0.0001971,2]
[347144500,1735522245478,-3380.13,0.0001971,2]
[347144501,1735522245488,-2321.78,0.00019711,2]
[347144502,1735522245497,-1114.09,0.00019715,2]
[347144503,1735522245506,-587.0,0.00019744,2]
[347144504,1735522245516,-448.844,0.0001975,2]
[347144505,1735522245525,-500.0,0.00019822,2]
[347144506,1735522245534,-1021.98,0.00019824,2]
[347144507,1735522245543,-3380.13,0.00019984,2]
[347144508,1735522245553,-2321.78,0.00019985,2]
[347144509,1735522245564,-1114.09,0.00019989,2]
[347144510,1735522245573,-250.23333294,0.0002,2]
[347144511,1735522245582,-500.0,0.00020096,2]
[347144512,1735522245592,-1021.98,0.00020098,2]
[347144513,1735522245603,-394.0,0.00020144,2]
[347144514,1735522245612,-3380.13,0.00020258,2]
[347144515,1735522245620,-2321.78,0.00020259,2]
[347144516,1735522245630,-411.0,0.0002026,2]
[347144517,1735522245639,-500.0,0.00020262,2]
[347144518,1735522245649,-1114.09,0.00020263,2]
[347144519,1735522245658,-180.0,0.00020338,2]
[347144520,1735522245667,-181.99,0.00020338,2]
[347144521,1735522245677,-167.1,0.00020338,2]
[347144522,1735522245686,-500.0,0.0002037,2]
[347144523,1735522245695,-1021.98,0.00020372,2]
[347144524,1735522245705,-618.0,0.000204,2]
[347144525,1735522245714,-160.0,0.00020427,5]
[347144526,1735522245725,-400.0,0.00020447,2]
[347144527,1735522245734,-212.0,0.000205,4]
[347144528,1735522245743,-212.0,0.000205,5]
[347144529,1735522245752,-256.0,0.000205,3]
[347144530,1735522245762,-256.0,0.000205,4]
[347144531,1735522245771,-3380.13,0.00020532,2]
[347144532,1735522245780,-2321.78,0.00020533,2]
[347144533,1735522245789,-1114.09,0.00020537,2]
[347144534,1735522245799,-232.4572301,0.00020582,2]
[347144535,1735522245808,-500.0,0.00020644,2]
[347144536,1735522245817,-1021.98,0.00020646,2]
[347144538,1735522245827,-1531.35641601,0.00020735,2]
[347144539,1735522245836,-1531.35641599,0.00020773,2]
[347144540,1735522245849,-500.0,0.00020789,2]
[347144541,1735522245859,-19084.93438341,0.0002079,2]
[347144542,1735522245868,-500.0,0.00020799,2]
[347144543,1735522245877,-504.29,0.000208,2]
[347144544,1735522245886,-32529.0,0.000208,3]
[347144545,1735522245896,-5164.75756255,0.000208,3]
[347144546,1735522245906,-5164.75756255,0.000208,3]
[347144547,1735522245916,-5164.75756255,0.000208,3]
[347144548,1735522245926,-2500.0,0.00020805,2]
[347144549,1735522245935,-3380.13,0.00020806,2]
[347144550,1735522245945,-2321.78,0.00020807,2]
[347144551,1735522245954,-150.23,0.00020807,2]
[347144553,1735522245964,-150.23,0.00020807,2]
[347144554,1735522245973,-172.86541984,0.00020807,2]
[347144555,1735522245982,-500.0,0.00020809,2]
[347144556,1735522245991,-1114.09,0.00020811,2]
[347144557,1735522246001,-1531.35641599,0.00020811,2]
[347144558,1735522246010,-10314.42233733,0.00020835,2]
[347144559,1735522246019,-4941.38331387,0.00020835,2]
[347144560,1735522246029,-130184.09790269,0.00020835,2]
[347144561,1735522246038,-541165.55416854,0.00020835,5]
[347144580,1735522755350,300.0,0.00025,120]
[347144582,1735523027059,1000.0,0.00025,120]
[347144583,1735523090492,2062.0,0.00025,120]
[347144584,1735523357093,-729.0913185,0.00013305,2]
[347144585,1735523357112,-265.66971178,0.00013422,2]
[347144586,1735523357132,-275.18701879,0.00013558,2]
[347144622,1735523432901,-371.52642887,0.00013422,2]
[347144623,1735523432912,-400.0,0.00013973,2]
[347144624,1735523432923,-1590.91467173,0.00014039,2]
[347144625,1735523432936,-1778.4821349,0.00014039,2]
[347144637,1735523438523,-500.0,0.00014038,2]
[347144639,1735523438534,-353.35371795,0.00014038,2]
[347144641,1735523438544,-500.0,0.00014038,2]
[347144643,1735523438553,-500.0,0.00014038,2]
[347144645,1735523438563,-121.97483651,0.00014038,2]
[347144661,1735523438711,-378.02516349,0.00014038,2]
[347144663,1735523438720,-28.5955629,0.00014038,2]
[347144665,1735523438732,-471.4044371,0.00014038,2]
[347144667,1735523438741,-4.28117429,0.00014038,2]
[347144669,1735523438753,-495.71882571,0.00014038,2]
[347144671,1735523438762,-500.0,0.00014038,2]
[347144673,1735523438771,-500.0,0.00014038,2]
[347144675,1735523438781,-500.0,0.00014038,2]
[347144677,1735523438790,-291.326446,0.00014038,2]
[347144679,1735523438800,-500.0,0.00014038,2]
[347144681,1735523438809,-500.0,0.00014038,2]
[347144683,1735523438818,-500.0,0.00014038,2]
[347144685,1735523438828,-500.0,0.00014038,2]
[347144687,1735523438837,-500.0,0.00014038,2]
[347144689,1735523438846,-500.0,0.00014038,2]
[347144691,1735523438856,-500.0,0.00014038,2]
[347144693,1735523438867,-500.0,0.00014038,2]
[347144695,1735523438876,-500.0,0.00014038,2]
[347144697,1735523438885,-500.0,0.00014038,2]
[347144699,1735523438894,-209.34723407,0.00014038,2]
[347144701,1735523438907,-500.0,0.00014038,2]
[347144703,1735523438916,-500.0,0.00014038,2]
[347144705,1735523438926,-21530.60319337,0.00014039,2]
[347144707,1735523438935,-300.0,0.00014284,2]
[347144709,1735523438946,-17375.2486358,0.00014285,2]
[347144711,1735523438955,-159.4393673,0.0001451,2]
[347144713,1735523438965,-295.3486126,0.0001461,2]
[347144715,1735523438974,-250.0,0.00014905,2]
[347144717,1735523438983,-152.0,0.00015162,2]
[347144719,1735523438992,-503.96201796,0.00015632,2]
[347144721,1735523439001,-500.0,0.00015632,2]
[347144723,1735523439010,-513.65166213,0.00015632,2]
[347144725,1735523439019,-594.13843626,0.00015634,2]
[347144727,1735523439028,-484.25822732,0.00015634,2]
[347144729,1735523439037,-503.9024013,0.00015634,2]
[347144731,1735523439046,-500.0,0.00015634,2]
[347144733,1735523439055,-500.0,0.00015634,2]
[347144735,1735523439064,-207.82027157,0.00015634,2]
[347144737,1735523439074,-508.46618854,0.00015635,2]
[347144739,1735523439084,-504.14863701,0.00015635,2]
[347144741,1735523439093,-504.81848217,0.00015635,2]
[347144743,1735523439103,-507.90671495,0.00015635,2]
[347144745,1735523439112,-502.43378577,0.00015635,2]
[347144747,1735523439121,-503.11720236,0.00015635,2]
[347144749,1735523439130,-504.81499169,0.00015635,2]
[347144751,1735523439139,-510.12994252,0.00015635,2]
[347144753,1735523439148,-510.73045066,0.00015635,2]
[347144755,1735523439157,-503.17532781,0.00015635,2]
[347144757,1735523439166,-334.73309502,0.00015635,2]
[347144759,1735523439175,-501.0033127,0.00015635,2]
[347144761,1735523439184,-502.06207046,0.00015635,2]
[347144763,1735523439193,-500.0,0.00015635,2]
[347144765,1735523439203,-500.0,0.00015635,2]
[347144767,1735523439211,-500.96982157,0.00015635,2]
[347144769,1735523439221,-504.210818,0.00015635,2]
[347144771,1735523439230,-526.16575171,0.00015635,2]
[347144772,1735523439239,-501.5569976,0.00015635,2]
[347144774,1735523439249,-503.00688266,0.00015635,2]
[347144777,1735523439259,-500.85645394,0.00015635,2]
[347144778,1735523439268,-502.50389221,0.00015635,2]
[347144780,1735523439277,-503.70364533,0.00015635,2]
[347144782,1735523439287,-504.48431803,0.00015635,2]
[347144784,1735523439296,-503.51022931,0.00015635,2]
[347144786,1735523439305,-501.35590567,0.00015635,2]
[347144788,1735523439314,-504.61529651,0.00015635,2]
[347144790,1735523439325,-504.53309904,0.00015635,2]
[347144792,1735523439337,-500.0,0.00015635,2]
[347144794,1735523439347,-420.0,0.00015645,2]
[347144796,1735523439356,-500.0,0.00015703,2]
[347144798,1735523439365,-500.0,0.00015703,2]
[347144800,1735523439374,-500.0,0.00015703,2]
[347144802,1735523439383,-500.0,0.00015703,2]
[347144804,1735523439393,-535.54713553,0.00015703,2]
[347144806,1735523439402,-500.0,0.00015703,2]
[347144808,1735523439411,-500.0,0.00015703,2]
[347144810,1735523439420,-194.76414909,0.00015703,2]
[347144812,1735523439429,-512.24954624,0.00015704,2]
[347144814,1735523439438,-504.40451007,0.00015704,2]
[347144816,1735523439448,-507.52739381,0.00015704,2]
[347144818,1735523439457,-502.40011218,0.00015704,2]
[347144820,1735523439467,-500.50652812,0.00015704,2]
[347144822,1735523439476,-500.0,0.00015704,2]
[347144824,1735523439485,-500.0,0.00015704,2]
[347144826,1735523439494,-504.06257152,0.00015704,2]
[347144828,1735523439503,-504.34227838,0.00015704,2]
[347144830,1735523439512,-500.0,0.00015704,2]
[347144832,1735523439521,-444.65273829,0.00015704,2]
[347144834,1735523439530,-507.65801324,0.00015704,2]
[347144836,1735523439539,-500.0,0.00015704,2]
[347144838,1735523439548,-510.88564222,0.00015704,2]
[347144840,1735523439557,-511.2755417,0.00015704,2]
[347144842,1735523439566,-504.93881416,0.00015704,2]
[347144844,1735523439576,-500.0,0.00015704,2]
[347144846,1735523439585,-197.38355222,0.00015704,2]
[347144848,1735523439594,-500.0,0.00015704,2]
[347144850,1735523439603,-278.2150499,0.00015704,2]
[347144852,1735523439614,-500.0,0.00015704,2]
[347144854,1735523439623,-500.0,0.00015704,2]
[347144856,1735523439633,-500.0,0.00015704,2]
[347144858,1735523439643,-500.0,0.00015704,2]
[347144860,1735523439651,-505.71577535,0.00015704,2]
[347144862,1735523439660,-500.0,0.00015704,2]
[347144864,1735523439670,-500.0,0.00015704,2]
[347144866,1735523439679,-500.0,0.00015704,2]
[347144868,1735523439689,-500.0,0.00015704,2]
[347144870,1735523439698,-500.0,0.00015704,2]
[347144871,1735523439707,-500.0,0.00015704,2]
[347144872,1735523439717,-500.0,0.00015704,2]
[347144873,1735523439726,-500.0,0.00015704,2]
[347144874,1735523439735,-509.00774951,0.00015704,2]
[347144875,1735523439744,-2353.19,0.00015704,2]
[347144876,1735523439753,-500.79891127,0.00015704,2]
[347144877,1735523439762,-515.9525401,0.00015704,2]
[347144878,1735523439771,-500.0,0.00015706,2]
[347144879,1735523439780,-500.0,0.00015906,2]
[347144880,1735523439789,-500.0,0.00015908,2]
[347144881,1735523439797,-500.0,0.00015908,2]
[347144882,1735523439807,-500.0,0.00015909,2]
[347144883,1735523439816,-500.0,0.00015909,2]